bitfinex/quotes_ETHUSD_20260203
["timestamp","ask_amount","ask_price","bid_price","bid_amount"]
[1770155807442,12.07949958,2290.9,2289.7,0.916]
[1770155808288,12.99549958,2291.3,2289.7,13.52864183]
[1770155808437,12.99549958,2291.3,2289.8,12.61920623]
[1770155808944,14.0866,2291.3,2289.7,0.916]
[1770155809553,14.0931644,2291.3,2289.7,0.916]
[1770155809754,12.07949958,2291.2,2289.7,0.916]
[1770155810682,12.66304296,2290.6,2289.3,0.001]
[1770155810867,12.66304296,2290.4,2289.3,0.001]
[1770155811451,13.75457488,2290.4,2289.3,0.001]
[1770155811777,12.66304296,2290.4,2289.3,0.001]
[1770155812550,13.75455944,2290.4,2289.3,0.001]
[1770155813162,12.75887856,2290.4,2289.3,0.001]
[1770155813578,13.85043006,2290.4,2289.3,0.001]
[1770155815345,11.72492568,2290.2,2289.3,0.001]
[1770155815568,11.71836128,2289.8,2288.3,0.001]
[1770155816100,9.71836128,2289.8,2288.3,0.001]
[1770155816395,9.72492568,2289.8,2288.3,0.001]
[1770155816805,11.72492568,2289.6,2288.3,0.001]
[1770155818075,11.71836128,2289.6,2288.3,0.001]
[1770155818400,11.71836128,2289.6,2288.5,0.001]
[1770155819602,12.81027579,2289.6,2288.5,0.001]
[1770155820301,0.1024,2289.8,2288.5,0.001]
[1770155820913,11.82076128,2289.8,2288.5,0.001]
[1770155821814,12.91260681,2289.8,2288.5,0.001]
[1770155822191,0.916,2289.9,2288.5,12.65275461]
[1770155822781,0.0011,2290.2,2288.7,12.65831901]
[1770155823118,0.0011,2290.2,2289.1,12.65175461]
[1770155823328,0.0011,2290.2,2289.1,12.65831901]
[1770155823723,0.0011,2290.2,2289.3,12.65175461]
[1770155824321,0.0011,2290.2,2289.3,12.65831901]
[1770155824723,0.0011,2290.4,2289.3,13.75033456]
[1770155824896,0.0011,2290.4,2289.3,12.65831901]
[1770155825517,0.0011,2290.4,2289.2,1.26648834]
[1770155825518,11.71946128,2290.4,2289.2,1.26648834]
[1770155825720,11.71946128,2290.4,2289.0,0.916]
[1770155825934,11.71946128,2290.4,2288.9,12.65175461]
[1770155825935,11.71946128,2290.4,2288.9,0.916]
[1770155826624,11.72602568,2290.4,2288.8,0.916]
[1770155826923,18.11946128,2290.4,2288.8,13.56775461]
[1770155827094,0.0065644,2290.2,2288.9,1.35677546]
[1770155827301,0.0065644,2290.2,2288.5,0.001]
[1770155827302,11.72492568,2290.1,2288.5,0.001]
[1770155827623,11.72492568,2290.0,2288.5,0.001]
[1770155828008,11.71836128,2290.0,2288.5,0.001]
[1770155828406,12.81006729,2290.0,2288.5,0.001]
[1770155828607,11.71836128,2289.8,2288.5,0.001]
[1770155829230,0.0065644,2289.9,2288.5,0.001]
[1770155829231,11.72492568,2289.6,2288.5,0.001]
[1770155829432,0.1024,2289.9,2288.5,0.001]
[1770155829724,11.71836128,2290.0,2288.5,12.65275461]
[1770155830935,11.71836128,2289.8,2288.5,0.001]
[1770155831237,0.0065644,2289.9,2289.0,0.001]
[1770155831238,0.0065644,2289.5,2289.0,0.001]
[1770155831447,0.0065644,2289.5,2288.5,0.001]
[1770155831448,11.72492568,2289.5,2288.5,0.001]
[1770155831623,11.72492568,2289.5,2288.8,0.001]
[1770155831624,0.0065644,2289.3,2288.8,0.001]
[1770155832131,11.72492568,2289.5,2288.8,0.001]
[1770155833224,11.71836128,2289.3,2288.3,0.001]
[1770155833423,11.71836128,2289.3,2288.0,0.001]
[1770155833424,11.71836128,2288.9,2288.0,0.001]
[1770155833627,11.71836128,2288.7,2288.0,0.001]
[1770155833836,2.32177506,2288.6,2288.0,0.001]
[1770155834907,2.32177506,2288.6,2288.1,0.0065644]
[1770155835103,2.32177506,2288.6,2288.2,0.0065644]
[1770155835311,2.32177506,2288.6,2288.1,0.0065644]
[1770155835942,2.32177506,2288.6,2288.0,0.001]
[1770155840724,2.32177506,2288.6,2287.8,0.001]
[1770155841335,14.82113431,2288.6,2287.8,0.001]
[1770155841542,14.82113431,2288.6,2287.5,0.001]
[1770155841747,21.22113431,2288.6,2287.5,0.001]
[1770155842452,2.32119981,2288.5,2287.5,0.001]
[1770155842667,2.32119981,2288.5,2287.7,0.0065644]
[1770155842831,2.32119981,2288.5,2287.8,0.0065644]
[1770155843327,2.32119981,2288.5,2287.7,0.0065644]
[1770155843648,2.32119981,2288.5,2287.6,12.4797608]
[1770155843838,2.32119981,2288.5,2287.7,0.001]
[1770155844046,2.32119981,2288.5,2287.7,1.34153252]
[1770155844643,2.32119981,2288.5,2287.7,0.001]
[1770155848657,12.49935925,2288.4,2287.7,0.001]
[1770155848849,12.49935925,2288.2,2287.7,0.001]
[1770155849153,1.85697981,2288.1,2287.7,0.001]
[1770155849734,6.4,2288.5,2287.7,0.001]
[1770155849936,1.48558385,2288.4,2287.7,0.001]
[1770155850339,12.49935925,2289.1,2287.7,12.4807608]
[1770155850536,13.31643037,2289.1,2287.7,12.4807608]
[1770155851347,13.31643037,2289.0,2287.7,12.4807608]
[1770155851548,13.31643037,2289.0,2287.8,1.33977608]
[1770155851549,12.49935925,2288.9,2287.8,1.33977608]
[1770155852332,0.81707112,2289.0,2287.8,1.33977608]
[1770155852531,0.81707112,2289.0,2287.8,2.25677608]
[1770155855046,13.31643037,2289.0,2287.8,1.33977608]
[1770155855239,13.31643037,2289.0,2287.7,0.001]
[1770155855635,0.0011,2288.8,2287.7,12.4807608]
[1770155857941,0.0011,2288.8,2287.9,12.4797608]
[1770155858465,0.0011,2288.8,2288.0,12.4863252]
[1770155858665,0.0011,2288.8,2288.1,2.16563252]
[1770155859275,0.0011,2288.8,2288.1,14.64539332]
[1770155861586,0.81817112,2289.0,2288.1,14.64539332]
[1770155861890,0.81817112,2289.0,2288.2,12.4863252]
[1770155862089,0.917,2289.7,2288.5,12.4863252]
[1770155862258,0.917,2289.7,2288.6,1.24928896]
[1770155862571,0.917,2289.7,2288.7,0.917]
[1770155862948,12.49935925,2289.8,2288.7,0.917]
[1770155865247,13.59116823,2289.8,2288.6,1.24928896]
[1770155865452,12.49935925,2289.2,2287.7,0.001]
[1770155865664,12.49935925,2289.2,2287.8,0.917]
[1770155865944,12.49935925,2289.2,2287.8,13.3967608]
[1770155866141,12.49935925,2289.2,2287.9,1.34043252]
[1770155867066,12.49935925,2289.2,2287.9,13.82675772]
[1770155867251,12.60175925,2289.5,2288.1,0.0065644]
[1770155867447,14.22735803,2289.5,2288.0,0.0065644]
[1770155867752,12.49935925,2289.3,2288.1,0.917]
[1770155870953,11.78387627,2288.9,2287.7,0.001]
[1770155871155,11.77731187,2288.7,2287.7,0.001]
[1770155872010,11.77731187,2289.1,2288.1,0.0065644]
[1770155872582,12.31096195,2289.1,2287.8,0.0065644]
[1770155872898,11.77731187,2289.1,2287.9,0.0065644]
[1770155873901,11.77731187,2289.1,2288.0,0.0065644]
[1770155874208,11.77731187,2289.1,2288.1,0.0065644]
[1770155876078,13.48351425,2289.4,2288.3,0.0065644]
[1770155876289,13.48351425,2289.4,2288.4,0.0065644]
[1770155877218,13.48351425,2289.4,2287.8,12.88421522]
[1770155877513,13.48351425,2289.4,2288.1,0.0065644]
[1770155877677,14.57552584,2289.4,2288.0,0.0065644]
[1770155877877,13.48351425,2289.4,2288.0,0.0065644]
[1770155879277,13.48351425,2289.4,2288.1,0.0065644]
[1770155879478,12.56651425,2289.3,2288.1,0.0065644]
[1770155880311,13.65856146,2289.3,2287.7,0.001]
[1770155880474,12.56651425,2289.1,2287.7,0.001]
[1770155880677,12.56651425,2288.9,2287.7,0.001]
[1770155880905,12.56651425,2288.7,2287.7,0.001]
[1770155881801,12.56651425,2288.7,2287.7,0.0075644]
[1770155882000,12.56651425,2289.0,2288.0,0.0065644]
[1770155882200,12.56651425,2289.0,2287.9,0.0065644]
[1770155882201,12.56651425,2289.0,2288.1,0.001]
[1770155884308,12.56651425,2289.0,2288.1,0.0075644]
[1770155886482,12.56651425,2289.0,2288.1,0.001]
[1770155887606,0.0011,2289.8,2289.0,0.0065644]
[1770155887807,0.0011,2289.8,2288.7,11.96721522]
[1770155887808,0.0011,2289.8,2288.4,11.96065082]
[1770155888009,12.56761425,2289.8,2288.6,0.917]
[1770155888219,12.56761425,2289.6,2288.6,0.917]
[1770155888579,12.56761425,2289.6,2288.5,0.9235644]
[1770155888780,12.56761425,2289.6,2288.6,1.28907796]
[1770155889181,12.56761425,2289.6,2288.6,1.29564236]
[1770155890894,13.13099766,2288.9,2288.1,0.001]
[1770155891614,0.917,2289.0,2287.9,0.001]
[1770155891615,12.56651425,2288.7,2287.9,0.001]
[1770155892712,1.48148341,2289.0,2287.9,0.001]
[1770155892713,0.917,2288.8,2287.9,0.001]
[1770155894392,14.04257041,2288.7,2287.9,0.001]
[1770155894610,14.22332168,2288.7,2287.9,0.001]
[1770155894902,12.56651425,2288.5,2287.9,0.001]
[1770155895106,12.56651425,2288.5,2287.7,0.001]
[1770155895823,12.56651425,2288.4,2287.7,0.001]
[1770155896124,12.56651425,2288.3,2287.7,0.001]
[1770155896422,13.48351425,2288.3,2287.7,0.001]
[1770155897715,13.48351425,2288.3,2288.1,0.001]
[1770155900193,19.88351425,2288.7,2288.1,0.001]
[1770155901609,12.18633253,2289.0,2288.1,0.001]
[1770155901923,13.10333253,2289.0,2288.1,0.001]
[1770155902499,12.18633253,2288.8,2287.9,0.001]
[1770155902830,4.37615625,2288.6,2287.7,0.001]
[1770155903047,12.18633253,2288.3,2287.7,0.001]
[1770155903534,12.18633253,2288.3,2287.6,0.001]
[1770155903743,0.7914092,2288.5,2287.7,12.6385501]
[1770155903907,12.18633253,2289.0,2288.0,0.0065644]
[1770155904105,12.18633253,2289.0,2287.6,0.001]
[1770155904303,13.10333253,2289.0,2287.6,1.35675501]
[1770155904722,13.10333253,2289.0,2287.6,13.99530511]
[1770155904934,13.10333253,2289.0,2287.7,12.6451145]
[1770155905233,13.10333253,2289.0,2287.6,1.35675501]
[1770155905405,13.10333253,2289.0,2287.6,0.001]
[1770155905601,13.10333253,2289.0,2287.6,12.6395501]
[1770155907220,13.10333253,2289.0,2287.6,0.001]
[1770155907542,12.18633253,2288.8,2287.6,0.001]
[1770155911418,12.18633253,2288.8,2287.8,0.001]
[1770155911823,12.18743253,2288.8,2287.8,0.001]
[1770155914556,12.18633253,2288.6,2287.8,0.001]
[1770155914718,0.0011,2288.8,2287.8,0.001]
[1770155915834,12.18743253,2288.8,2287.8,0.001]
[1770155916042,12.18633253,2288.6,2287.8,0.001]
[1770155920852,12.18633253,2288.6,2287.6,0.001]
[1770155920853,13.10151601,2288.5,2287.6,0.001]
[1770155921174,12.18633253,2288.1,2287.1,0.001]
[1770155921322,12.18633253,2287.9,2287.1,0.001]
[1770155921516,3.12654883,2288.0,2287.2,12.6385501]
[1770155921517,1.29436535,2288.0,2287.2,12.6385501]
[1770155921718,13.31426165,2288.6,2287.4,12.6385501]
[1770155921955,0.57680717,2288.7,2287.5,12.6451145]
[1770155922447,0.57680717,2288.7,2287.5,12.6385501]
[1770155923134,12.7631397,2288.7,2287.5,12.6385501]
[1770155924257,12.7631397,2288.7,2288.0,0.001]
[1770155924458,0.0011,2288.4,2288.0,0.001]
[1770155925950,13.10822407,2288.3,2287.1,0.001]
[1770155926257,12.18633253,2288.1,2287.1,0.001]
[1770155926427,13.10165967,2288.0,2287.1,0.001]
[1770155926626,12.18633253,2288.0,2287.1,0.001]
[1770155926829,12.18633253,2287.8,2287.1,0.001]
[1770155927029,12.18633253,2287.6,2287.1,0.001]
[1770155927344,12.18633253,2287.6,2286.8,0.004]
[1770155930639,12.95751366,2287.7,2286.8,0.004]
[1770155930836,13.87451366,2287.9,2286.8,0.004]
[1770155931256,13.87451366,2287.9,2286.9,0.0065644]
[1770155931555,13.87451366,2287.9,2287.0,0.0065644]
[1770155931757,13.87451366,2287.9,2286.9,0.0065644]
[1770155933749,12.95751366,2288.2,2287.3,0.0065644]
[1770155934064,0.0011,2288.4,2287.6,0.0065644]
[1770155934265,12.95861366,2288.4,2286.9,0.0065644]
[1770155934465,12.95751366,2288.2,2286.7,12.50718405]
[1770155934762,12.78274943,2287.8,2286.4,0.0065644]
[1770155934934,0.917,2287.7,2286.7,0.0065644]
[1770155935132,0.917,2287.7,2286.7,1.26669084]
[1770155935865,0.917,2287.7,2286.7,1.26012644]
[1770155936271,12.78274943,2287.8,2286.7,1.26012644]
[1770155937047,0.0011,2287.7,2286.7,1.26012644]
[1770155941072,12.78274943,2287.6,2286.7,1.26012644]
[1770155941269,12.78274943,2287.4,2286.4,0.001]
[1770155944956,0.917,2287.5,2286.4,0.001]
[1770155944957,0.917,2287.5,2286.6,0.0065644]
[1770155945267,19.18384943,2287.7,2286.6,0.0065644]
[1770155945470,19.18384943,2287.7,2286.5,0.0065644]
[1770155945772,19.18384943,2287.7,2286.4,0.0075644]
[1770155946136,12.78274943,2287.6,2286.4,0.0075644]
[1770155946351,12.78274943,2287.6,2286.4,0.001]
[1770155947567,12.78274943,2287.5,2286.4,0.001]
[1770155947769,12.78274943,2287.3,2286.4,0.001]
[1770155948075,0.917,2287.5,2286.4,0.001]
[1770155948872,0.917,2287.5,2286.5,0.0065644]
[1770155949075,0.0011,2287.7,2286.8,0.0065644]
[1770155949596,0.0011,2287.7,2287.1,0.0065644]
[1770155949886,0.0011,2287.7,2286.9,0.0065644]
[1770155950053,0.0011,2287.7,2287.0,0.0065644]
[1770155950572,0.0011,2287.6,2287.1,0.0065644]
[1770155950792,12.78274943,2288.5,2287.3,0.0065644]
[1770155952951,12.78274943,2288.5,2286.9,1.35182644]
[1770155952952,12.78274943,2288.3,2286.9,1.35182644]
[1770155953270,12.78274943,2288.3,2286.7,0.917]
[1770155953471,12.78274943,2288.3,2286.7,13.49857116]
[1770155953688,12.78274943,2288.3,2286.9,0.0065644]
[1770155953967,12.78274943,2288.1,2286.8,12.58813556]
[1770155954182,12.78274943,2288.1,2286.9,1.35051356]
[1770155954568,12.78274943,2288.1,2287.0,0.0065644]
[1770155954774,12.78274943,2288.1,2287.1,0.0065644]
[1770155955154,19.18384943,2288.4,2287.3,0.0065644]
[1770155955359,12.78384943,2288.4,2287.2,12.58813556]
[1770155955553,12.78384943,2288.4,2287.3,1.25947]
[1770155955809,12.78384943,2288.4,2287.1,0.0065644]
[1770155956155,12.78384943,2288.4,2287.3,0.0065644]
[1770155956476,12.78384943,2288.4,2287.4,0.0065644]
[1770155956675,12.78384943,2288.4,2287.3,0.0065644]
[1770155956977,12.78384943,2288.4,2287.4,0.917]
[1770155959282,0.0011,2288.4,2287.5,0.0065644]
[1770155960862,12.32434961,2288.4,2287.0,12.20532823]
[1770155961088,12.32434961,2288.4,2287.1,0.917]
[1770155961261,12.32434961,2288.4,2287.1,0.9235644]
[1770155961461,12.32434961,2288.4,2287.2,1.3135457]
[1770155962080,12.32434961,2288.4,2287.2,2.2305457]
[1770155962288,12.32434961,2288.2,2287.2,0.917]
[1770155963607,12.32434961,2288.2,2286.8,0.0065644]
[1770155963811,12.32434961,2288.2,2286.9,0.917]
[1770155964099,12.32434961,2288.2,2286.9,0.9235644]
[1770155964804,12.32434961,2288.2,2287.0,0.0065644]
[1770155964991,12.32324961,2288.1,2287.0,0.0065644]
[1770155965380,0.0011,2288.2,2287.0,0.0065644]
[1770155965584,12.32324961,2288.1,2287.0,0.0065644]
[1770155967006,12.32324961,2288.1,2286.9,0.9235644]
[1770155968690,12.32324961,2288.1,2287.0,0.0065644]
[1770155969806,12.32324961,2288.1,2286.9,0.0065644]
[1770155970005,12.32324961,2288.1,2286.9,0.9235644]
[1770155970610,12.32324961,2287.9,2286.9,0.917]
[1770155970835,6.4,2288.0,2287.0,0.0065644]
[1770155971109,12.32434961,2288.2,2287.2,0.0065644]
[1770155971310,12.32434961,2288.2,2287.2,1.22906654]
[1770155971615,13.41692029,2288.2,2287.2,1.22250214]
[1770155971787,12.32324961,2288.0,2286.6,0.001]
[1770155971987,13.23607732,2287.9,2286.6,0.001]
[1770155972289,12.32324961,2287.9,2286.6,0.001]
[1770155972491,12.32324961,2287.7,2286.6,0.001]
[1770155972813,12.32324961,2287.7,2286.6,0.0075644]
[1770155973695,12.32324961,2287.7,2286.6,0.001]
[1770155974206,12.32324961,2287.7,2287.2,0.001]
[1770155975511,12.32324961,2287.6,2287.2,0.001]
[1770155978322,18.72324961,2288.0,2287.2,0.001]
[1770155978520,0.91419218,2287.9,2287.2,0.001]
[1770155978688,12.32324961,2287.9,2287.2,0.001]
[1770155979014,12.22324961,2287.9,2287.2,0.001]
[1770155979214,12.32324961,2287.9,2287.2,0.001]
[1770155980519,13.41596634,2287.9,2287.2,0.001]
[1770155980900,12.32324961,2287.7,2287.2,0.001]
[1770155984317,12.32324961,2287.5,2287.2,0.001]
[1770155986304,13.24024961,2287.5,2286.6,0.001]
[1770155986504,12.32324961,2287.4,2286.6,0.001]
[1770155987793,12.32324961,2287.4,2287.1,0.001]
[1770155987993,12.32324961,2287.4,2286.6,0.001]
[1770155994202,19.43336657,2287.5,2286.6,0.001]
[1770155995031,19.11779565,2287.5,2286.6,1.21545787]
[1770155995401,11.80079565,2287.4,2286.6,1.21545787]
[1770155996546,11.80079565,2287.4,2286.6,0.001]
[1770155998904,7.317,2287.5,2286.6,12.74617042]
[1770155999106,6.4,2287.5,2286.6,12.74617042]
[1770155999307,11.80079565,2287.4,2286.6,0.918]
[1770155999851,18.20079565,2287.5,2286.6,0.918]
[1770156000132,18.20079565,2287.5,2286.7,1.36697348]
[1770156000341,6.4,2287.5,2286.7,1.36697348]
[1770156000643,0.9181,2287.7,2286.8,12.75173482]
[1770156000871,0.0011,2287.7,2286.8,12.75173482]
[1770156001332,0.0011,2287.7,2286.9,0.0065644]
[1770156001536,0.0011,2287.2,2286.9,0.0065644]
[1770156001716,0.0011,2287.7,2287.1,12.75173482]
[1770156002038,0.0011,2287.9,2287.2,2.19282992]
[1770156003010,11.80189565,2287.9,2287.2,1.27582992]
[1770156003212,11.80189565,2287.9,2286.9,0.917]
[1770156003706,0.0011,2287.9,2287.0,12.75173482]
[1770156004417,0.0011,2287.9,2287.2,0.0065644]
[1770156004634,0.0011,2287.9,2287.2,12.75173482]
[1770156006240,0.0011,2288.4,2287.5,12.74517042]
[1770156006571,0.0011,2288.4,2287.8,12.75173482]
[1770156006750,0.0011,2288.6,2288.0,0.0065644]
[1770156007463,0.0011,2288.6,2288.1,0.0065644]
[1770156007668,0.0011,2288.6,2288.1,0.9235644]
[1770156007852,0.0011,2288.6,2288.2,1.36752992]
[1770156008399,0.0011,2289.6,2288.7,0.0065644]
[1770156008535,11.58752674,2289.7,2288.8,0.917]
[1770156008837,0.0011,2289.8,2289.0,0.0065644]
[1770156009182,11.80189565,2289.8,2288.5,12.74517042]
[1770156009381,11.80079565,2289.6,2288.6,0.917]
[1770156011104,11.80079565,2289.6,2288.2,12.74517042]
[1770156011273,11.80079565,2289.6,2288.6,0.917]
[1770156012312,12.89269248,2289.6,2287.8,0.0065644]
[1770156012494,12.89269248,2289.6,2287.6,0.0065644]
[1770156012495,11.80079565,2289.0,2287.3,14.02100034]
[1770156012696,11.80079565,2289.0,2287.7,0.917]
[1770156013179,11.80079565,2289.0,2287.7,13.66217042]
[1770156013377,11.80079565,2289.0,2287.8,0.917]
[1770156014092,11.80079565,2289.0,2288.2,0.001]
[1770156016645,12.89283685,2289.3,2288.2,0.001]
[1770156017007,11.80079565,2289.3,2288.2,0.001]
[1770156017208,12.89284318,2289.3,2288.2,0.001]
[1770156020445,1.09204753,2289.3,2288.2,0.001]
[1770156020651,12.50752151,2289.2,2288.2,0.001]
[1770156022133,13.59963911,2289.2,2288.2,0.001]
[1770156025060,12.50752151,2288.2,2287.0,0.001]
[1770156025354,14.11229409,2288.1,2287.0,0.001]
[1770156025510,12.50752151,2288.0,2287.0,0.001]
[1770156025710,0.68777258,2287.9,2287.0,0.001]
[1770156025906,13.19529409,2287.9,2287.0,0.001]
[1770156026130,12.50752151,2287.7,2287.0,0.001]
[1770156026449,12.50752151,2287.5,2286.6,0.001]
[1770156026654,13.19529409,2287.4,2286.6,0.001]
[1770156027243,13.19529409,2287.4,2287.2,0.001]
[1770156027446,13.19529409,2287.4,2286.6,0.001]
[1770156027862,13.19529409,2287.4,2287.0,0.001]
[1770156028154,13.19529409,2287.4,2286.6,0.001]
[1770156028312,12.50752151,2287.4,2286.6,0.001]
[1770156033627,14.28824589,2287.4,2286.6,0.001]
[1770156033831,12.50752151,2287.2,2286.6,0.001]
[1770156034052,13.42452151,2287.2,2286.6,0.001]
[1770156034931,12.50752151,2287.0,2286.3,0.003]
[1770156035130,12.60992151,2286.7,2284.8,12.76355657]
[1770156035355,12.60992151,2286.7,2284.8,12.75699217]
[1770156035356,12.60992151,2286.5,2284.8,12.75699217]
[1770156035526,12.60992151,2286.5,2284.9,1.27569922]
[1770156035731,13.29769409,2286.5,2284.9,1.27569922]
[1770156036062,0.48847117,2286.9,2284.9,1.27569922]
[1770156036063,12.50752151,2287.1,2285.8,0.0065644]
[1770156036361,13.19529409,2287.0,2285.4,12.76355657]
[1770156036559,12.50752151,2286.6,2285.5,1.3687121]
[1770156036751,12.50752151,2286.6,2285.3,0.917]
[1770156037059,13.60086186,2286.6,2285.1,12.75699217]
[1770156037246,12.60992151,2286.5,2285.1,13.67399217]
[1770156037447,12.60992151,2286.5,2285.1,0.917]
[1770156037662,12.60992151,2286.5,2284.9,1.27569922]
[1770156037844,12.50752151,2286.4,2285.0,1.40392558]
[1770156038038,12.50752151,2286.4,2285.0,1.41048998]
[1770156038464,12.50752151,2286.4,2285.0,1.40392558]
[1770156038634,12.50752151,2285.8,2284.3,0.003]
[1770156038834,0.97475712,2285.7,2284.3,13.67699217]
[1770156039445,0.97475712,2285.7,2284.4,12.76355672]
[1770156039642,0.97475712,2285.7,2284.5,12.76355672]
[1770156039844,0.97475712,2285.7,2284.6,1.27701213]
[1770156039845,13.48227863,2285.7,2284.6,1.27701213]
[1770156040162,13.48227863,2285.7,2284.4,0.917]
[1770156040461,12.50752151,2285.6,2284.4,0.917]
[1770156040759,12.50752151,2285.6,2285.3,0.001]
[1770156040936,12.50752151,2285.6,2284.4,0.917]
[1770156041137,12.50752151,2285.6,2285.0,0.001]
[1770156046141,13.19529409,2285.6,2284.3,12.75999217]
[1770156046341,0.97475712,2285.7,2284.3,12.75999217]
[1770156046742,0.97475712,2285.7,2284.5,12.75699217]
[1770156047178,0.97475712,2285.7,2284.7,12.75699217]
[1770156047382,0.97475712,2285.7,2284.9,12.75699217]
[1770156047965,0.97475712,2285.7,2285.0,0.918]
[1770156048382,0.97475712,2285.7,2284.8,2.19435567]
[1770156050774,0.97475712,2285.7,2284.8,1.27635567]
[1770156051075,0.97475712,2285.7,2284.8,2.19435567]
[1770156051245,0.97475712,2285.7,2284.9,0.21943557]
[1770156053658,0.97475712,2285.7,2285.1,0.001]
[1770156053956,13.47684204,2285.7,2285.1,0.001]
[1770156055251,0.97475712,2285.7,2285.1,0.001]
[1770156057655,12.03243069,2286.3,2285.1,12.46104939]
[1770156057854,13.12590487,2286.3,2285.2,1.24610494]
[1770156058076,12.03133069,2286.1,2285.1,0.001]
[1770156059777,12.03133069,2285.9,2285.1,0.001]
[1770156059965,12.71910327,2285.9,2285.1,0.001]
[1770156060569,12.03133069,2285.8,2285.1,0.001]
[1770156060881,12.03133069,2285.4,2284.3,0.003]
[1770156061064,12.03133069,2285.3,2284.3,1.24940494]
[1770156061383,12.03133069,2285.3,2284.3,0.003]
[1770156061853,12.03133069,2285.1,2284.3,0.003]
[1770156062572,12.71910327,2285.1,2284.3,0.003]
[1770156063249,12.03133069,2285.1,2284.3,0.003]
[1770156064490,12.03133069,2284.9,2284.3,0.003]
[1770156065288,0.68777258,2284.8,2284.3,0.003]
[1770156065657,12.71910327,2284.8,2284.5,0.001]
[1770156065854,13.63710327,2284.8,2283.9,0.001]
[1770156066081,14.73129181,2284.8,2283.9,0.001]
[1770156066274,14.73129181,2284.8,2284.3,0.001]
[1770156066472,12.03133069,2284.6,2284.3,0.001]
[1770156066878,12.03133069,2284.6,2283.9,0.001]
[1770156067175,12.03133069,2284.4,2283.3,0.001]
[1770156067862,13.12574746,2284.4,2283.3,0.001]
[1770156068062,12.94933069,2284.3,2283.3,0.001]
[1770156068398,12.03133069,2284.1,2283.3,0.001]
[1770156069269,12.03133069,2283.9,2282.1,12.46004939]
[1770156069606,12.94933069,2284.2,2282.5,12.46004939]
[1770156069890,13.1259493,2284.0,2282.6,1.24600494]
[1770156070064,13.13251758,2284.0,2282.6,1.24600494]
[1770156070265,13.13251758,2284.0,2282.3,0.918]
[1770156070481,13.13251758,2284.0,2282.2,12.46004939]
[1770156070785,12.03133069,2283.8,2282.2,13.37804939]
[1770156071091,0.60835591,2283.9,2282.2,13.37804939]
[1770156071092,12.03133069,2283.6,2282.2,13.37804939]
[1770156072395,13.12609436,2283.6,2282.0,0.00656943]
[1770156072581,13.12609436,2283.6,2282.0,1.24797554]
[1770156072582,13.12159337,2283.5,2282.0,1.24797554]
[1770156072964,0.1024,2283.4,2282.0,1.24797554]
[1770156073196,0.1024,2283.4,2281.3,13.37804939]
[1770156073197,12.03133069,2282.9,2281.3,13.37804939]
[1770156073510,12.94933069,2282.9,2281.3,13.37804939]
[1770156073795,12.94933069,2282.9,2281.7,12.46004939]
[1770156073971,12.94933069,2282.9,2281.4,12.46004939]
[1770156074293,12.03133069,2282.8,2281.5,2.25580494]
[1770156074589,12.03133069,2282.8,2281.5,1.33780494]
[1770156075302,12.03133069,2282.8,2281.5,13.79785433]
[1770156075970,0.48190677,2283.2,2282.0,12.46004939]
[1770156076177,12.03133069,2283.4,2282.1,13.37804939]
[1770156076405,12.03133069,2283.4,2282.2,1.33780494]
[1770156076772,12.03133069,2283.4,2282.2,13.79785433]
[1770156078884,12.03133069,2283.7,2282.2,13.79785433]
[1770156079097,0.00657274,2284.3,2282.7,12.46662213]
[1770156079098,12.50728537,2284.3,2282.7,12.46662213]
[1770156079300,12.03133069,2284.3,2282.9,12.46004939]
[1770156079700,12.03243069,2284.2,2282.9,12.46004939]
[1770156080006,0.0011,2284.2,2282.9,12.46004939]
[1770156080193,0.0011,2284.2,2283.0,13.38562213]
[1770156080371,0.0011,2284.2,2283.1,13.79926888]
[1770156081373,12.00131502,2284.2,2283.1,1.33921949]
[1770156081575,12.00131502,2284.2,2283.0,0.919]
[1770156082004,13.09473802,2284.1,2283.0,0.919]
[1770156082285,12.00021502,2284.1,2283.0,0.869]
[1770156082488,0.0011,2284.2,2283.0,0.869]
[1770156082811,0.0011,2284.2,2283.0,13.3316217]
[1770156083009,0.0011,2284.2,2283.1,1.33316217]
[1770156083808,0.0011,2284.2,2283.1,13.79578387]
[1770156084009,0.0011,2284.2,2283.2,12.46919444]
[1770156084885,0.0011,2284.2,2283.2,12.4626217]
[1770156085283,12.00131502,2284.2,2283.2,0.919]
[1770156085617,0.0011,2284.2,2283.2,1.14421622]
[1770156086504,12.00131502,2284.2,2283.2,1.14421622]
[1770156087387,12.00131502,2284.2,2283.2,0.919]
[1770156087914,12.00131502,2284.2,2282.8,0.919]
[1770156088281,12.00021502,2284.0,2282.8,0.919]
[1770156090488,13.09479645,2284.0,2282.3,12.4626217]
[1770156090808,12.00021502,2284.0,2282.4,13.3816217]
[1770156091001,12.00021502,2284.0,2282.5,1.33816217]
[1770156091202,12.00021502,2284.0,2282.5,13.80078387]
[1770156091592,12.00021502,2284.0,2282.7,12.4626217]
[1770156091919,12.00021502,2284.0,2282.7,12.46919444]
[1770156092503,12.00021502,2284.0,2282.8,12.46919444]
[1770156092696,12.00021502,2284.0,2282.9,1.24757672]
[1770156092911,0.919,2284.1,2283.0,13.3816217]
[1770156093418,12.00131502,2284.2,2283.0,13.3816217]
[1770156093917,12.00131502,2284.2,2283.1,12.46919444]
[1770156093918,0.0011,2284.2,2283.1,12.46919444]
[1770156094109,0.0011,2284.2,2283.3,12.4626217]
[1770156095423,0.0011,2284.4,2283.7,12.4626217]
[1770156095626,0.0011,2284.4,2283.8,0.919]
[1770156096127,0.30648997,2284.8,2283.9,0.00657274]
[1770156096324,0.30648997,2284.8,2284.0,12.46919444]
[1770156096627,0.30648997,2284.8,2284.1,1.24757672]
[1770156096916,12.30670499,2284.8,2284.1,1.24757672]
[1770156097129,12.30670499,2284.8,2283.4,12.4626217]
[1770156097284,13.40089915,2284.8,2283.5,0.919]
[1770156097723,12.30670499,2284.8,2283.5,0.919]
[1770156097883,13.40089284,2284.8,2283.5,0.919]
[1770156098087,12.00021502,2284.7,2283.5,0.919]
[1770156098688,0.30648997,2284.8,2283.7,12.46919444]
[1770156098889,12.30670499,2284.8,2283.5,0.92557274]